[Event "*** Titled Tuesday Blitz"]
[Site "Chess.com"]
[Date "2018.11.06"]
[Round "8"]
[White "Zq1"]
[Black "MikaelyanArman"]
[Result "0-1"]
[WhiteElo "2501"]
[BlackElo "2724"]
[TimeControl "180+2"]
[EndTime "14:51:35 PST"]
[Termination "MikaelyanArman won by resignation"]

1. Nf3 {[%clk 0:03:01.9]} 1... d5 {[%clk 0:02:59.5]} 2. c4 {[%clk 0:03:01.9]}
2... dxc4 {[%clk 0:02:57]} 3. Na3 {[%clk 0:03:00.8]} 3... e5 {[%clk 0:02:57.7]}
4. Qc2 {[%clk 0:02:56.1]} 4... Bxa3 {[%clk 0:02:56]} 5. bxa3 {[%clk 0:02:55.8]}
5... Nc6 {[%clk 0:02:53.9]} 6. Bb2 {[%clk 0:02:53.9]} 6... Qd6 {[%clk 0:02:47]}
7. Qxc4 {[%clk 0:02:47.1]} 7... Nge7 {[%clk 0:02:48.3]} 8. g3 {[%clk 0:02:35.8]}
8... O-O {[%clk 0:02:48.7]} 9. Bg2 {[%clk 0:02:36.1]} 9... Be6 {[%clk 0:02:50]}
10. Qc2 {[%clk 0:02:33.3]} 10... Bd5 {[%clk 0:02:40.3]} 11. O-O {[%clk
0:02:23.7]} 11... e4 {[%clk 0:02:39.9]} 12. Ng5 {[%clk 0:02:12.7]} 12... f5
{[%clk 0:02:37.8]} 13. d3 {[%clk 0:02:12.4]} 13... exd3 {[%clk 0:02:32.8]} 14.
Qxd3 {[%clk 0:02:08.4]} 14... h6 {[%clk 0:02:30.2]} 15. e4 {[%clk 0:01:50.2]}
15... fxe4 {[%clk 0:02:19.9]} 16. Nxe4 {[%clk 0:01:44.9]} 16... Qg6 {[%clk
0:02:20.1]} 17. Rad1 {[%clk 0:01:18.4]} 17... Kh8 {[%clk 0:02:18.6]} 18. Nc5
{[%clk 0:01:06.1]} 18... Qxd3 {[%clk 0:02:16.8]} 19. Rxd3 {[%clk 0:01:05.6]}
19... Bc4 {[%clk 0:02:17.8]} 20. Rd7 {[%clk 0:00:49.6]} 20... Bxf1 {[%clk
0:02:18.4]} 21. Kxf1 {[%clk 0:00:45.7]} 21... Rad8 {[%clk 0:02:13]} 22. Rxc7
{[%clk 0:00:36.3]} 22... Rd2 {[%clk 0:01:43]} 23. Bxg7+ {[%clk 0:00:28.4]} 23...
Kxg7 {[%clk 0:01:44.9]} 24. Ne6+ {[%clk 0:00:28.5]} 24... Kf7 {[%clk 0:01:46.4]}
25. Nxf8 {[%clk 0:00:27.5]} 25... Kxf8 {[%clk 0:01:48.3]} 26. Rxb7 {[%clk
0:00:28.4]} 26... Rxa2 {[%clk 0:01:46]} 27. Rc7 {[%clk 0:00:20.3]} 27... Nd4
{[%clk 0:01:43.6]} 28. Be4 {[%clk 0:00:17.7]} 28... Rxa3 {[%clk 0:01:43.6]} 29.
f4 {[%clk 0:00:16]} 29... Nef5 {[%clk 0:01:42.5]} 30. Rd7 {[%clk 0:00:12]} 30...
Ne3+ {[%clk 0:01:37.9]} 31. Kf2 {[%clk 0:00:12.4]} 31... Ng4+ {[%clk 0:01:38.5]}
32. Kg2 {[%clk 0:00:13.6]} 32... Ne6 {[%clk 0:01:32.3]} 33. f5 {[%clk
0:00:09.9]} 33... Ra2+ {[%clk 0:01:29.9]} 34. Kg1 {[%clk 0:00:08.3]} 34... Ng5
{[%clk 0:01:30.1]} 35. Bd5 {[%clk 0:00:08.1]} 35... Nh3+ {[%clk 0:01:25.8]} 36.
Kf1 {[%clk 0:00:08]} 36... Ne3+ {[%clk 0:01:24.3]} 37. Ke1 {[%clk 0:00:09]}
37... Nxd5 {[%clk 0:01:13.4]} 38. Rxd5 {[%clk 0:00:10]} 38... Ke7 {[%clk
0:01:07.6]} 39. Re5+ {[%clk 0:00:09.3]} 39... Kf6 {[%clk 0:01:07.7]} 40. Re6+
{[%clk 0:00:10.3]} 40... Kxf5 {[%clk 0:01:08.9]} 41. Rxh6 {[%clk 0:00:10.8]}
41... Ng5 {[%clk 0:01:09.8]} 42. h4 {[%clk 0:00:09.1]} 42... Nf3+ {[%clk
0:01:09.7]} 43. Kd1 {[%clk 0:00:10.4]} 43... Ke4 {[%clk 0:01:05.3]} 44. h5
{[%clk 0:00:10]} 44... Kd3 {[%clk 0:01:04.5]} 45. Rd6+ {[%clk 0:00:10.7]} 45...
Nd4 {[%clk 0:01:05.6]} 46. Ke1 {[%clk 0:00:11.3]} 46... Ke3 {[%clk 0:01:02.2]}
47. Kf1 {[%clk 0:00:12.1]} 47... Rh2 {[%clk 0:00:59.2]} 48. h6 {[%clk
0:00:11.6]} 48... a5 {[%clk 0:00:52.9]} 49. g4 {[%clk 0:00:10.5]} 49... Nf3
{[%clk 0:00:49.8]} 50. Re6+ {[%clk 0:00:10.6]} 50... Kf4 {[%clk 0:00:50.8]} 51.
g5 {[%clk 0:00:10.9]} 51... Kg3 {[%clk 0:00:50]} 0-1

[Event "*** Titled Tuesday Blitz"]
[Site "Chess.com"]
[Date "2018.11.06"]
[Round "8"]
[White "GCamachoMartinez"]
[Black "pastouche06"]
[Result "1/2-1/2"]
[WhiteElo "2323"]
[BlackElo "2442"]
[TimeControl "180+2"]
[EndTime "14:51:35 PST"]
[Termination "Game drawn by repetition"]

1. d4 {[%clk 0:03:01.9]} 1... Nf6 {[%clk 0:03:00]} 2. c4 {[%clk 0:03:02.1]} 2...
e6 {[%clk 0:03:01.4]} 3. g3 {[%clk 0:02:59.4]} 3... d5 {[%clk 0:03:02.1]} 4. Nf3
{[%clk 0:02:58.6]} 4... dxc4 {[%clk 0:03:02.9]} 5. Qa4+ {[%clk 0:02:57.1]} 5...
Nbd7 {[%clk 0:03:03]} 6. Qxc4 {[%clk 0:02:57.5]} 6... a6 {[%clk 0:03:04.1]} 7.
Bg2 {[%clk 0:02:57.5]} 7... b5 {[%clk 0:02:57.3]} 8. Qc2 {[%clk 0:02:56.8]} 8...
Bb7 {[%clk 0:02:57.3]} 9. O-O {[%clk 0:02:57.6]} 9... c5 {[%clk 0:02:53.1]} 10.
dxc5 {[%clk 0:02:57.9]} 10... Bxc5 {[%clk 0:02:54.6]} 11. Nc3 {[%clk 0:02:35.9]}
11... O-O {[%clk 0:02:52.8]} 12. a3 {[%clk 0:02:36]} 12... Rc8 {[%clk
0:02:48.8]} 13. b4 {[%clk 0:02:22.9]} 13... Bb6 {[%clk 0:02:42.1]} 14. Qb3
{[%clk 0:02:15.3]} 14... Ne4 {[%clk 0:02:22.5]} 15. Bb2 {[%clk 0:02:06]} 15...
Qe7 {[%clk 0:02:09.7]} 16. Rad1 {[%clk 0:01:53.5]} 16... Ndf6 {[%clk 0:02:04.3]}
17. Nd4 {[%clk 0:01:18.8]} 17... Nxc3 {[%clk 0:02:01.3]} 18. Bxc3 {[%clk
0:01:16.5]} 18... Bxg2 {[%clk 0:02:01.9]} 19. Kxg2 {[%clk 0:01:17]} 19... Rc4
{[%clk 0:02:00.3]} 20. Bb2 {[%clk 0:01:04.5]} 20... Rfc8 {[%clk 0:01:50.2]} 21.
Rd3 {[%clk 0:00:45.6]} 21... g6 {[%clk 0:01:36.4]} 22. Rfd1 {[%clk 0:00:46.2]}
22... e5 {[%clk 0:01:28.8]} 23. Nf3 {[%clk 0:00:33.2]} 23... e4 {[%clk
0:01:29.7]} 24. Bxf6 {[%clk 0:00:29.2]} 24... Qxf6 {[%clk 0:01:31.6]} 25. Rd6
{[%clk 0:00:30.3]} 25... exf3+ {[%clk 0:01:26.4]} 26. exf3 {[%clk 0:00:31.2]}
26... Qf5 {[%clk 0:01:22.9]} 27. Rxb6 {[%clk 0:00:28.8]} 27... h5 {[%clk
0:01:17.1]} 28. Qd3 {[%clk 0:00:23.1]} 28... Qg5 {[%clk 0:01:17.3]} 29. Rd6
{[%clk 0:00:18.5]} 29... h4 {[%clk 0:01:09.6]} 30. Rd8+ {[%clk 0:00:19.3]} 30...
Kh7 {[%clk 0:01:10.5]} 31. Rxc8 {[%clk 0:00:19.8]} 31... Rxc8 {[%clk 0:01:12.4]}
32. f4 {[%clk 0:00:19.5]} 32... Qg4 {[%clk 0:01:11.8]} 33. Qd7 {[%clk
0:00:18.2]} 33... h3+ {[%clk 0:01:10.7]} 34. Kf1 {[%clk 0:00:19]} 34... Qf3
{[%clk 0:00:57.9]} 35. Qxh3+ {[%clk 0:00:19.7]} 35... Kg7 {[%clk 0:00:58.5]} 36.
Qxc8 {[%clk 0:00:21.5]} 36... Qxd1+ {[%clk 0:00:59.5]} 37. Kg2 {[%clk
0:00:23.1]} 37... Qd5+ {[%clk 0:01:00.5]} 38. Kg1 {[%clk 0:00:23.5]} 38... Qd1+
{[%clk 0:01:01.3]} 39. Kg2 {[%clk 0:00:24.7]} 39... Qd5+ {[%clk 0:01:02.2]} 40.
Kh3 {[%clk 0:00:25.1]} 40... Qh5+ {[%clk 0:01:02.5]} 41. Kg2 {[%clk 0:00:25.5]}
41... Qd5+ {[%clk 0:01:04]} 42. f3 {[%clk 0:00:26.2]} 42... Qa2+ {[%clk
0:01:00.8]} 43. Kh3 {[%clk 0:00:26.7]} 43... Qxa3 {[%clk 0:01:02.4]} 44. Qc5
{[%clk 0:00:25.4]} 44... Qxf3 {[%clk 0:01:02.4]} 45. Qe5+ {[%clk 0:00:25.7]}
45... Kh7 {[%clk 0:01:03.2]} 46. Qf6 {[%clk 0:00:24.4]} 46... Qh5+ {[%clk
0:00:56.2]} 47. Kg2 {[%clk 0:00:24.9]} 47... Qd5+ {[%clk 0:00:57.3]} 48. Kh3
{[%clk 0:00:24.4]} 48... Qh5+ {[%clk 0:00:42.1]} 49. Kg2 {[%clk 0:00:24.6]}
49... Qe2+ {[%clk 0:00:43.1]} 50. Kh3 {[%clk 0:00:25.2]} 50... Qh5+ {[%clk
0:00:44.7]} 51. Kg2 {[%clk 0:00:26]} 51... Qe2+ {[%clk 0:00:46.3]} 52. Kg1
{[%clk 0:00:26.7]} 52... Qe1+ {[%clk 0:00:46]} 53. Kg2 {[%clk 0:00:27.5]} 53...
Qe2+ {[%clk 0:00:46.9]} 54. Kg1 {[%clk 0:00:28.6]} 54... Qe1+ {[%clk 0:00:47.7]}
55. Kg2 {[%clk 0:00:29.6]} 55... Qe2+ {[%clk 0:00:43.9]} 56. Kg1 {[%clk
0:00:30.6]} 56... Qe1+ {[%clk 0:00:45.2]} 57. Kg2 {[%clk 0:00:31.7]} 57... Qe2+
{[%clk 0:00:46.6]} 1/2-1/2

[Event "*** Titled Tuesday Blitz"]
[Site "Chess.com"]
[Date "2018.11.06"]
[Round "8"]
[White "jcibarra"]
[Black "VerdeNotte"]
[Result "0-1"]
[WhiteElo "2648"]
[BlackElo "2822"]
[TimeControl "180+2"]
[EndTime "14:51:36 PST"]
[Termination "VerdeNotte won by resignation"]

1. Nf3 {[%clk 0:03:01.9]} 1... g6 {[%clk 0:02:59.8]} 2. e4 {[%clk 0:03:01.3]}
2... c5 {[%clk 0:03:00.8]} 3. d4 {[%clk 0:03:01]} 3... cxd4 {[%clk 0:03:02.1]}
4. Nxd4 {[%clk 0:03:02.6]} 4... Nf6 {[%clk 0:03:03]} 5. Nc3 {[%clk 0:03:03.5]}
5... d6 {[%clk 0:03:04.1]} 6. Be3 {[%clk 0:02:57.3]} 6... Nc6 {[%clk 0:03:04.6]}
7. f3 {[%clk 0:02:54.8]} 7... Bg7 {[%clk 0:03:05.4]} 8. Qd2 {[%clk 0:02:55.4]}
8... O-O {[%clk 0:03:06.2]} 9. O-O-O {[%clk 0:02:56.5]} 9... d5 {[%clk
0:03:07.5]} 10. Kb1 {[%clk 0:02:57.9]} 10... Nxd4 {[%clk 0:03:08]} 11. e5 {[%clk
0:02:58.5]} 11... Nf5 {[%clk 0:03:09.2]} 12. exf6 {[%clk 0:02:59.3]} 12... Bxf6
{[%clk 0:03:10.7]} 13. Nxd5 {[%clk 0:03:00]} 13... Qxd5 {[%clk 0:03:12]} 14.
Qxd5 {[%clk 0:03:01.9]} 14... Nxe3 {[%clk 0:03:13.6]} 15. Qd2 {[%clk 0:03:03.6]}
15... Nxd1 {[%clk 0:03:15.5]} 16. Qxd1 {[%clk 0:03:05.5]} 16... Be6 {[%clk
0:03:16.1]} 17. Bb5 {[%clk 0:03:07]} 17... Rfd8 {[%clk 0:03:16.8]} 18. Qe2
{[%clk 0:03:08]} 18... Rd4 {[%clk 0:03:17.7]} 19. Rd1 {[%clk 0:03:07.8]} 19...
Rb4 {[%clk 0:03:15.8]} 20. b3 {[%clk 0:03:06.4]} 20... a5 {[%clk 0:03:01.7]} 21.
a3 {[%clk 0:02:54.9]} 21... Rh4 {[%clk 0:03:01.3]} 22. g3 {[%clk 0:02:50.7]}
22... Rh5 {[%clk 0:03:00.3]} 23. f4 {[%clk 0:02:46.6]} 23... a4 {[%clk
0:02:51.7]} 24. b4 {[%clk 0:02:23.3]} 24... Rc8 {[%clk 0:02:31.1]} 25. Bd7
{[%clk 0:02:21.8]} 25... Bxd7 {[%clk 0:02:13.5]} 26. Rxd7 {[%clk 0:02:20.6]}
26... b5 {[%clk 0:02:12]} 27. h4 {[%clk 0:02:05.3]} 27... Rf5 {[%clk 0:02:04.5]}
28. Qe4 {[%clk 0:01:56.4]} 28... h5 {[%clk 0:01:56.7]} 29. Rd5 {[%clk
0:01:46.9]} 29... Rc4 {[%clk 0:01:55]} 30. Qf3 {[%clk 0:01:16.9]} 30... Rc3
{[%clk 0:01:34.6]} 31. Rd3 {[%clk 0:01:14.9]} 31... Rc4 {[%clk 0:01:36]} 32.
Qa8+ {[%clk 0:01:08.9]} 32... Kh7 {[%clk 0:01:34.1]} 33. Qf8 {[%clk 0:01:04.1]}
33... Bd4 {[%clk 0:01:04.1]} 34. Qxe7 {[%clk 0:00:56]} 34... Kg7 {[%clk
0:01:05.4]} 35. Qd7 {[%clk 0:00:44.4]} 35... Bf6 {[%clk 0:00:57]} 36. Rd5 {[%clk
0:00:42.1]} 36... Rxd5 {[%clk 0:00:57.7]} 37. Qxd5 {[%clk 0:00:42.9]} 37... Rc3
{[%clk 0:00:59.6]} 38. Qxb5 {[%clk 0:00:32.2]} 38... Rxa3 {[%clk 0:01:00.5]} 39.
c4 {[%clk 0:00:26.9]} 39... Ra1+ {[%clk 0:01:01.2]} 40. Kc2 {[%clk 0:00:27.9]}
40... Ra2+ {[%clk 0:01:01.9]} 41. Kb1 {[%clk 0:00:27.1]} 41... Rb2+ {[%clk
0:01:02.4]} 42. Kc1 {[%clk 0:00:15]} 42... a3 {[%clk 0:01:03.4]} 43. Qa6 {[%clk
0:00:14.8]} 43... Rb3 {[%clk 0:00:55.5]} 44. Kc2 {[%clk 0:00:12.1]} 44... Rxg3
{[%clk 0:00:53.1]} 45. b5 {[%clk 0:00:07.7]} 45... a2 {[%clk 0:00:53.8]} 46.
Qxa2 {[%clk 0:00:05.4]} 46... Rg2+ {[%clk 0:00:55.1]} 47. Kb3 {[%clk 0:00:07.3]}
47... Rxa2 {[%clk 0:00:56.5]} 48. Kxa2 {[%clk 0:00:09.2]} 48... Bxh4 {[%clk
0:00:51.2]} 49. c5 {[%clk 0:00:06.7]} 49... Bf2 {[%clk 0:00:51]} 50. c6 {[%clk
0:00:07.3]} 50... Bb6 {[%clk 0:00:52]} 51. Kb3 {[%clk 0:00:08.9]} 51... h4
{[%clk 0:00:53.1]} 52. Kc4 {[%clk 0:00:09.9]} 52... h3 {[%clk 0:00:54.2]} 53.
Kd5 {[%clk 0:00:11.4]} 53... h2 {[%clk 0:00:55.2]} 54. Kd6 {[%clk 0:00:13.1]}
54... h1=Q {[%clk 0:00:56.4]} 0-1

[Event "*** Titled Tuesday Blitz"]
[Site "Chess.com"]
[Date "2018.11.06"]
[Round "8"]
[White "hypert"]
[Black "1random"]
[Result "0-1"]
[WhiteElo "2376"]
[BlackElo "2501"]
[TimeControl "180+2"]
[EndTime "14:51:48 PST"]
[Termination "1random won by resignation"]

1. Nf3 {[%clk 0:03:00]} 1... Nf6 {[%clk 0:02:59.5]} 2. g3 {[%clk 0:03:01.5]}
2... d5 {[%clk 0:03:00.6]} 3. Bg2 {[%clk 0:03:03.1]} 3... e6 {[%clk 0:03:02.2]}
4. O-O {[%clk 0:03:04.6]} 4... Be7 {[%clk 0:03:03.8]} 5. c4 {[%clk 0:03:04.9]}
5... O-O {[%clk 0:03:04.7]} 6. b3 {[%clk 0:03:06.2]} 6... b6 {[%clk 0:03:05.7]}
7. Bb2 {[%clk 0:03:07.4]} 7... Bb7 {[%clk 0:03:07.3]} 8. e3 {[%clk 0:03:08.9]}
8... c5 {[%clk 0:03:04.4]} 9. Nc3 {[%clk 0:03:09.6]} 9... Qc8 {[%clk 0:03:05.6]}
10. Qe2 {[%clk 0:03:10.2]} 10... Rd8 {[%clk 0:03:06]} 11. Rad1 {[%clk
0:03:10.1]} 11... Nc6 {[%clk 0:03:05.4]} 12. d3 {[%clk 0:03:00]} 12... d4 {[%clk
0:03:06.1]} 13. exd4 {[%clk 0:02:57.8]} 13... cxd4 {[%clk 0:03:08]} 14. Ne4
{[%clk 0:02:55.2]} 14... Nxe4 {[%clk 0:02:58.1]} 15. dxe4 {[%clk 0:02:55.6]}
15... e5 {[%clk 0:02:44.8]} 16. Ne1 {[%clk 0:02:56.5]} 16... Qc7 {[%clk
0:02:23.1]} 17. Nd3 {[%clk 0:02:57.2]} 17... Nb4 {[%clk 0:02:22.8]} 18. a3
{[%clk 0:02:54.7]} 18... Nxd3 {[%clk 0:02:22.6]} 19. Qxd3 {[%clk 0:02:46.9]}
19... a5 {[%clk 0:02:19.5]} 20. f4 {[%clk 0:02:48]} 20... Bc5 {[%clk 0:02:18]}
21. f5 {[%clk 0:02:47.1]} 21... Be7 {[%clk 0:02:10]} 22. h4 {[%clk 0:02:41.1]}
22... Ba6 {[%clk 0:02:06.9]} 23. Bf3 {[%clk 0:02:27.2]} 23... a4 {[%clk
0:02:06.5]} 24. Be2 {[%clk 0:02:24.3]} 24... Rdc8 {[%clk 0:01:58]} 25. Rc1
{[%clk 0:02:16.6]} 25... axb3 {[%clk 0:01:50.9]} 26. Qxb3 {[%clk 0:02:18.5]}
26... Bb7 {[%clk 0:01:38]} 27. Bd3 {[%clk 0:02:18.6]} 27... Bc6 {[%clk
0:01:33.7]} 28. Qd1 {[%clk 0:02:03]} 28... Bxa3 {[%clk 0:01:26]} 29. Bxa3 {[%clk
0:01:57]} 29... Rxa3 {[%clk 0:01:27.9]} 30. f6 {[%clk 0:01:57.8]} 30... g6
{[%clk 0:01:20.7]} 31. Rb1 {[%clk 0:01:56.1]} 31... Qd8 {[%clk 0:01:08.7]} 32.
Qd2 {[%clk 0:01:47.3]} 32... Bb7 {[%clk 0:00:31.7]} 33. h5 {[%clk 0:01:07.6]}
33... Rc6 {[%clk 0:00:27.6]} 34. hxg6 {[%clk 0:00:46.1]} 34... hxg6 {[%clk
0:00:28.6]} 35. c5 {[%clk 0:00:36.6]} 35... Rxf6 {[%clk 0:00:27]} 36. Rxf6
{[%clk 0:00:27.1]} 36... Qxf6 {[%clk 0:00:28.2]} 37. Rxb6 {[%clk 0:00:27.3]}
37... Qf3 {[%clk 0:00:27.6]} 38. Bf1 {[%clk 0:00:23]} 38... Bxe4 {[%clk
0:00:23.6]} 39. Rb8+ {[%clk 0:00:21.4]} 39... Kg7 {[%clk 0:00:23.8]} 40. Qh2
{[%clk 0:00:23]} 40... Qxg3+ {[%clk 0:00:17.8]} 41. Qxg3 {[%clk 0:00:24.9]}
41... Rxg3+ {[%clk 0:00:19]} 42. Kf2 {[%clk 0:00:26.4]} 42... Rc3 {[%clk
0:00:20.1]} 43. Rc8 {[%clk 0:00:25.7]} 43... f5 {[%clk 0:00:19.4]} 44. Bb5
{[%clk 0:00:24.8]} 44... Kf6 {[%clk 0:00:20.3]} 45. Be8 {[%clk 0:00:22]} 45...
Kg5 {[%clk 0:00:20]} 46. c6 {[%clk 0:00:22.1]} 46... Rc2+ {[%clk 0:00:21]} 47.
Ke1 {[%clk 0:00:22.2]} 47... Kf4 {[%clk 0:00:21.3]} 48. Ra8 {[%clk 0:00:21]}
48... Bxc6 {[%clk 0:00:19.5]} 49. Rc8 {[%clk 0:00:21.1]} 49... Be4 {[%clk
0:00:16]} 50. Rxc2 {[%clk 0:00:16.9]} 50... Bxc2 {[%clk 0:00:16.8]} 51. Bxg6
{[%clk 0:00:18.8]} 51... Ke3 {[%clk 0:00:16.8]} 52. Bxf5 {[%clk 0:00:18.8]}
52... Bxf5 {[%clk 0:00:17.3]} 0-1

[Event "*** Titled Tuesday Blitz"]
[Site "Chess.com"]
[Date "2018.11.06"]
[Round "8"]
[White "TST2014"]
[Black "KenanGarayev"]
[Result "1-0"]
[WhiteElo "2520"]
[BlackElo "2720"]
[TimeControl "180+2"]
[EndTime "14:51:50 PST"]
[Termination "TST2014 won by resignation"]

1. d4 {[%clk 0:03:01.9]} 1... g6 {[%clk 0:03:00.5]} 2. e4 {[%clk 0:03:01.8]}
2... Bg7 {[%clk 0:03:00.9]} 3. c4 {[%clk 0:03:02.5]} 3... d6 {[%clk 0:03:01.9]}
4. Nc3 {[%clk 0:03:02.5]} 4... Nc6 {[%clk 0:03:03.2]} 5. Be3 {[%clk 0:03:01]}
5... e5 {[%clk 0:03:04.1]} 6. d5 {[%clk 0:02:58]} 6... Nce7 {[%clk 0:03:04.9]}
7. g4 {[%clk 0:02:56.8]} 7... f5 {[%clk 0:03:05.2]} 8. gxf5 {[%clk 0:02:56.8]}
8... gxf5 {[%clk 0:03:07.1]} 9. f3 {[%clk 0:02:31.5]} 9... Nf6 {[%clk
0:03:05.8]} 10. Qd2 {[%clk 0:02:29.5]} 10... f4 {[%clk 0:03:02]} 11. Bf2 {[%clk
0:02:29.5]} 11... O-O {[%clk 0:03:00.9]} 12. O-O-O {[%clk 0:02:29.8]} 12... a6
{[%clk 0:03:00.1]} 13. c5 {[%clk 0:02:29.4]} 13... Bd7 {[%clk 0:02:54.9]} 14.
Kb1 {[%clk 0:02:29.5]} 14... b5 {[%clk 0:02:54.8]} 15. Rc1 {[%clk 0:02:23]}
15... b4 {[%clk 0:02:53.8]} 16. Nd1 {[%clk 0:02:21.7]} 16... a5 {[%clk
0:02:54.4]} 17. Bh3 {[%clk 0:02:12.4]} 17... Rb8 {[%clk 0:02:44.5]} 18. b3
{[%clk 0:02:02.8]} 18... a4 {[%clk 0:02:43.2]} 19. Nb2 {[%clk 0:02:03.9]} 19...
axb3 {[%clk 0:02:42.6]} 20. axb3 {[%clk 0:02:04.4]} 20... Bxh3 {[%clk
0:02:43.2]} 21. Nxh3 {[%clk 0:02:03.6]} 21... h6 {[%clk 0:02:34.8]} 22. Nc4
{[%clk 0:01:56.1]} 22... Qd7 {[%clk 0:02:33.7]} 23. Ng1 {[%clk 0:01:44.9]} 23...
Rfd8 {[%clk 0:02:24]} 24. Ne2 {[%clk 0:01:39.6]} 24... Qb5 {[%clk 0:02:22.1]}
25. Kc2 {[%clk 0:01:27.4]} 25... dxc5 {[%clk 0:02:15.7]} 26. Ra1 {[%clk
0:01:25.7]} 26... c6 {[%clk 0:02:07.5]} 27. d6 {[%clk 0:01:14.8]} 27... Ned5
{[%clk 0:02:05.8]} 28. Ra5 {[%clk 0:01:09.8]} 28... Qb7 {[%clk 0:02:00.3]} 29.
Bxc5 {[%clk 0:01:05.7]} 29... Ra8 {[%clk 0:01:57.9]} 30. Rha1 {[%clk 0:01:03.4]}
30... Rxa5 {[%clk 0:01:58]} 31. Rxa5 {[%clk 0:01:04]} 31... Ra8 {[%clk 0:01:59]}
32. exd5 {[%clk 0:00:52.1]} 32... cxd5 {[%clk 0:01:56.5]} 33. Qxb4 {[%clk
0:00:50.7]} 33... Qc8 {[%clk 0:01:48]} 34. Rxa8 {[%clk 0:00:39.8]} 34... Qxa8
{[%clk 0:01:49.9]} 35. Qa5 {[%clk 0:00:40.4]} 35... Qc8 {[%clk 0:01:48]} 36.
Nxe5 {[%clk 0:00:40.1]} 36... Qf5+ {[%clk 0:01:39.3]} 37. Nd3 {[%clk 0:00:39.3]}
37... Nd7 {[%clk 0:01:37]} 38. Qd8+ {[%clk 0:00:34.7]} 38... Kh7 {[%clk
0:01:37.8]} 39. Nd4 {[%clk 0:00:35.5]} 39... Qh3 {[%clk 0:01:32.7]} 40. Qe7
{[%clk 0:00:22.5]} 40... Qg2+ {[%clk 0:01:27.2]} 41. Qe2 {[%clk 0:00:23]} 41...
Qg1 {[%clk 0:01:24]} 42. Qf2 {[%clk 0:00:18.7]} 42... Qa1 {[%clk 0:01:21.8]} 43.
Ne6 {[%clk 0:00:13.4]} 43... Qc3+ {[%clk 0:01:18.6]} 44. Kb1 {[%clk 0:00:13]}
44... Qa1+ {[%clk 0:01:18.7]} 45. Kc2 {[%clk 0:00:13.6]} 45... Qc3+ {[%clk
0:01:17.7]} 46. Kb1 {[%clk 0:00:14.4]} 46... Qxd3+ {[%clk 0:01:19.6]} 47. Qc2
{[%clk 0:00:14.7]} 47... Qxc2+ {[%clk 0:01:14.1]} 48. Kxc2 {[%clk 0:00:16]}
48... Be5 {[%clk 0:01:15.1]} 49. b4 {[%clk 0:00:15.8]} 49... Kg6 {[%clk
0:01:16]} 50. Kd3 {[%clk 0:00:16.3]} 50... Kf5 {[%clk 0:01:16.6]} 51. Nd4+
{[%clk 0:00:16.6]} 51... Bxd4 {[%clk 0:01:13.4]} 52. Kxd4 {[%clk 0:00:17.4]}
52... Ke6 {[%clk 0:01:15.3]} 53. b5 {[%clk 0:00:18.5]} 53... Nb8 {[%clk
0:01:14.8]} 54. b6 {[%clk 0:00:19.2]} 54... Nc6+ {[%clk 0:01:15.8]} 55. Kd3
{[%clk 0:00:18.5]} 55... Kd7 {[%clk 0:01:17]} 56. b7 {[%clk 0:00:14.1]} 56...
Ke6 {[%clk 0:01:09.4]} 57. Ba7 {[%clk 0:00:14.6]} 57... Ne5+ {[%clk 0:01:04.2]}
58. Ke2 {[%clk 0:00:14]} 1-0